[Event "26th Abu Dhabi Master 2019"]
[Site "Abu Dhabi"]
[Date "2019.08.03"]
[Round "2.30"]
[White "Bajarani, Ulvi"]
[Black "Ammar, Sedrani"]
[Result "1-0"]
[ECO "D35"]
[WhiteElo "2485"]
[BlackElo "2024"]
[Annotator "ChessBase"]
[PlyCount "55"]
[EventDate "2019.08.02"]
[EventType "swiss"]
[EventCountry "UAE"]
[SourceTitle "playchess.com"]
[Source "ChessBase"]
[SourceQuality "1"]
[TimeControl "5400+30"]

1. d4 {[%emt 0:00:00]} d5 {[%emt 0:00:12]} 2. c4 {[%emt 0:00:00]} e6 {[%emt 0:00:06]} 3. cxd5 {[%emt 0:00:00]} exd5 {[%emt 0:00:03]} 4. Nc3 {[%emt 0:00:07]} Nf6 {[%emt 0:00:44]} 5. Bg5 {[%emt 0:00:08]} Be7 {[%emt 0:00:54]} 6. e3 {[%emt 0:00:07]} O-O {[%emt 0:00:13]} 7. Bd3 {[%emt 0:00:06]} Nbd7 {[%emt 0:00:30]} 8. Nge2 {[%emt 0:00:15]} Re8 {[%emt 0:01:12]} 9. Qc2 {[%emt 0:01:05]} Nf8 {[%emt 0:00:24]} 10. O-O {[%emt 0:00:07]} Ng6 {[%emt 0:02:01]} 11. Rad1 {[%emt 0:02:07]} c6 {[%emt 0:00:35]} 12. f3 {[%emt 0:01:32]} Nh5 {[%emt 0:20:30]} 13. Bxe7 {[%emt 0:00:10]} Qxe7 {[%emt 0:00:09]} 14. e4 {[%emt 0:00:23]} dxe4 {[%emt 0:04:29]} 15. fxe4 {[%emt 0:00:13]} Be6 {[%emt 0:01:47]} 16. e5 {[%emt 0:04:34]} c5 {[%emt 0:12:00]} 17. d5 {[%emt 0:03:03]} Bg4 {[%emt 0:00:51]} 18. e6 {[%emt 0:01:04]} fxe6 {[%emt 0:07:57]} 19. Bxg6 {[%emt 0:00:18]} hxg6 {[%emt 0:00:18]} 20. Qxg6 {[%emt 0:00:09]} Bxe2 {[%emt 0:01:03]} 21. d6 {[%emt 0:00:45]} Qh4 {[%emt 0:06:39]} 22. Nxe2 {[%emt 0:01:06]} Nf6 {[%emt 0:01:28]} 23. Rf4 {[%emt 0:00:42]} Qh5 {[%emt 0:00:11]} 24. Rxf6 {[%emt 0:00:25]} Qxe2 {[%emt 0:00:08]} 25. Qf7+ {[%emt 0:03:27]} Kh8 {[%emt 0:00:08]} 26. Rff1 {[%emt 0:00:22]} Red8 {[%emt 0:03:10]} 27. Rde1 {[%emt 0:00:45]} Qd2 {[%emt 0:00:23]} 28. Re4 {[%emt 0:00:16]} 1-0

[Event "26th Abu Dhabi Master 2019"]
[Site "Abu Dhabi"]
[Date "2019.08.03"]
[Round "2.32"]
[White "Aaryan Varshney"]
[Black "Volokitin, Andrei"]
[Result "0-1"]
[ECO "D37"]
[WhiteElo "2284"]
[BlackElo "2636"]
[Annotator "RC"]
[PlyCount "88"]
[EventDate "2019.08.02"]
[EventType "swiss"]
[EventCountry "UAE"]
[SourceTitle "playchess.com"]
[Source "ChessBase"]
[SourceQuality "1"]
[TimeControl "5400+30"]

1. d4 Nf6 2. Nf3 d5 3. c4 e6 4. Nc3 dxc4 5. e3 a6 6. Bxc4 b5 7. Bd3 Bb7 8. O-O c5 9. dxc5 Bxc5 10. b3 Nbd7 11. Bb2 O-O 12. Ng5 Be7 13. Qb1 h6 14. Nh7 Re8 15. Nxf6+ Nxf6 16. Ne4 Qd5 17. f3 Qd8 18. Nxf6+ Bxf6 19. Bh7+ Kh8 20. Bxf6 Qxf6 21. Be4 Bxe4 22. Qxe4 Rac8 23. Rad1 Red8 24. Qb7 Rc2 25. f4 Rxa2 26. Rxd8+ Qxd8 27. f5 Qg5 28. Kh1 Qxf5 29. Kg1 Qg5 30. Kh1 Qxe3 31. Qxf7 Qe4 32. Rg1 Rb2 33. Qf8+ Kh7 34. Qa3 Rb1 35. h3 Rxg1+ 36. Kxg1 a5 37. Qxa5 Qe3+ 38. Kh2 Qxb3 39. Qc7 Qc4 40. Qg3 b4 41. Qe1 b3 42. Qb1+ Qc2 43. Qe1 b2 44. Qxe6 b1=Q 0-1

[Event "26th Abu Dhabi Master 2019"]
[Site "Abu Dhabi"]
[Date "2019.08.03"]
[Round "2.33"]
[White "Antipov, Mikhail Al."]
[Black "Rajdeep Sarkar"]
[Result "1-0"]
[ECO "B54"]
[WhiteElo "2582"]
[BlackElo "2369"]
[Annotator "ChessBase"]
[PlyCount "67"]
[EventDate "2019.08.02"]
[EventType "swiss"]
[EventCountry "UAE"]
[SourceTitle "playchess.com"]
[Source "ChessBase"]
[SourceQuality "1"]
[TimeControl "5400+30"]

1. e4 c5 2. Nf3 d6 3. d4 cxd4 4. Nxd4 Nf6 5. f3 e5 6. Nb3 Be7 7. c4 O-O 8. Be3 a5 9. Nc3 a4 10. Nd2 Qa5 11. Ndb1 Nbd7 12. Qd2 Nc5 13. Na3 Be6 14. Be2 Rfc8 15. O-O Bd8 16. Qxd6 Bb6 17. Kh1 Rd8 18. Qxe5 Qb4 19. Qg3 Nd3 20. Bxb6 Qxb6 21. Bxd3 Qxb2 22. Nd5 Bxd5 23. cxd5 Qxa3 24. f4 Qe7 25. Rae1 b5 26. Bb1 b4 27. d6 Qa7 28. e5 Ne8 29. Qh3 g6 30. f5 Rac8 31. fxg6 hxg6 32. e6 Nxd6 33. exf7+ Nxf7 34. Qe6 1-0

[Event "26th Abu Dhabi Master 2019"]
[Site "Abu Dhabi"]
[Date "2019.08.03"]
[Round "2.35"]
[White "Vaibhav, Suri"]
[Black "Pranesh M"]
[Result "1-0"]
[ECO "A05"]
[WhiteElo "2591"]
[BlackElo "2343"]
[Annotator "ChessBase"]
[PlyCount "105"]
[EventDate "2019.08.02"]
[EventType "swiss"]
[EventCountry "UAE"]
[SourceTitle "playchess.com"]
[Source "ChessBase"]
[SourceQuality "1"]
[TimeControl "5400+30"]

1. Nf3 {[%emt 0:00:00]} Nf6 {[%emt 0:00:00]} 2. c4 {[%emt 0:00:16]} e6 {[%emt 0:00:00]} 3. g3 {[%emt 0:00:05]} d5 {[%emt 0:00:00]} 4. Bg2 {[%emt 0:00:05]} c5 {[%emt 0:00:00]} 5. O-O {[%emt 0:04:36]} Nc6 {[%emt 0:00:03]} 6. d4 {[%emt 0:04:34]} dxc4 {[%emt 0:00:32]} 7. dxc5 {[%emt 0:00:40]} Qxd1 {[%emt 0:00:11]} 8. Rxd1 {[%emt 0:00:05]} Bxc5 {[%emt 0:00:03]} 9. Nfd2 {[%emt 0:04:23]} e5 {[%emt 0:05:02]} 10. Nxc4 {[%emt 0:04:21]} O-O {[%emt 0:00:39]} 11. Nc3 {[%emt 0:08:48]} Be6 {[%emt 0:02:17]} 12. Be3 {[%emt 0:11:10]} Bxe3 {[%emt 0:11:00]} 13. Nxe3 {[%emt 0:00:06]} Rad8 {[%emt 0:01:32]} 14. b3 {[%emt 0:08:18]} a6 {[%emt 0:13:46]} 15. Bxc6 {[%emt 0:08:11]} bxc6 {[%emt 0:00:44]} 16. Na4 {[%emt 0:00:56]} Rd4 {[%emt 0:05:55]} 17. Rxd4 {[%emt 0:05:35]} exd4 {[%emt 0:00:18]} 18. Nc2 {[%emt 0:00:05]} d3 {[%emt 0:04:32]} 19. exd3 {[%emt 0:00:11]} Nd7 {[%emt 0:00:19]} 20. Nb4 {[%emt 0:09:01]} Ne5 {[%emt 0:02:40]} 21. Nxa6 {[%emt 0:00:30]} Bh3 {[%emt 0:02:44]} 22. f4 {[%emt 0:01:31]} Nf3+ {[%emt 0:05:15]} 23. Kf2 {[%emt 0:00:16]} Nxh2 {[%emt 0:00:16]} 24. Rh1 {[%emt 0:02:34]} Ng4+ {[%emt 0:00:09]} 25. Kg1 {[%emt 0:04:45]} Re8 {[%emt 0:00:56]} 26. Rxh3 {[%emt 0:00:01]} Re1+ {[%emt 0:00:48]} 27. Kg2 {[%emt 0:00:02]} f5 {[%emt 0:00:33]} 28. Nb4 {[%emt 0:02:10]} Rc1 {[%emt 0:05:44]} 29. d4 {[%emt 0:03:14]} Rd1 {[%emt 0:00:46]} 30. Nxc6 {[%emt 0:01:50]} g6 {[%emt 0:03:31]} 31. Nc3 {[%emt 0:03:36]} Rd2+ {[%emt 0:04:25]} 32. Kg1 {[%emt 0:01:52]} Rc2 {[%emt 0:01:14]} 33. Ne7+ {[%emt 0:00:04]} Kg7 {[%emt 0:00:36]} 34. Ned5 {[%emt 0:00:11]} Rc1+ {[%emt 0:00:59]} 35. Kg2 {[%emt 0:00:01]} h5 {[%emt 0:02:43]} 36. b4 {[%emt 0:00:23]} Rc2+ {[%emt 0:01:55]} 37. Kf1 {[%emt 0:00:11]} Rb2 {[%emt 0:01:01]} 38. b5 {[%emt 0:00:23]} Kf7 {[%emt 0:00:30]} 39. a4 {[%emt 0:00:42]} Ke6 {[%emt 0:00:59]} 40. a5 {[%emt 0:00:23]} Kd6 {[%emt 0:00:38]} 41. a6 {[%emt 0:00:15]} Rc2 {[%emt 0:00:33]} 42. a7 {[%emt 0:00:54]} Rc1+ {[%emt 0:00:14]} 43. Ke2 {[%emt 0:00:02]} Ra1 {[%emt 0:00:11]} 44. Nb6 {[%emt 0:00:41]} Rxa7 {[%emt 0:01:04]} 45. Nc8+ {[%emt 0:00:04]} Kc7 {[%emt 0:00:03]} 46. Nxa7 {[%emt 0:00:04]} g5 {[%emt 0:00:03]} 47. Rxh5 {[%emt 0:00:07]} gxf4 {[%emt 0:00:05]} 48. gxf4 {[%emt 0:00:07]} Ne3 {[%emt 0:00:03]} 49. Kxe3 {[%emt 0:00:04]} Kb7 {[%emt 0:00:03]} 50. Rh7+ {[%emt 0:00:28]} Ka8 {[%emt 0:00:06]} 51. b6 {[%emt 0:00:11]} Kb8 {[%emt 0:00:04]} 52. Nc6+ {[%emt 0:00:03]} Ka8 {[%emt 0:00:04]} 53. b7# {[%emt 0:00:02]} 1-0

[Event "26th Abu Dhabi Master 2019"]
[Site "Abu Dhabi"]
[Date "2019.08.03"]
[Round "2.36"]
[White "Dixit, Nikhil"]
[Black "Paichadze, Luka"]
[Result "0-1"]
[ECO "C41"]
[WhiteElo "2318"]
[BlackElo "2567"]
[Annotator "ChessBase"]
[PlyCount "90"]
[EventDate "2019.08.02"]
[EventType "swiss"]
[EventCountry "UAE"]
[SourceTitle "playchess.com"]
[Source "ChessBase"]
[SourceQuality "1"]
[TimeControl "5400+30"]

1. e4 {[%emt 0:00:00]} d6 {[%emt 0:05:20]} 2. d4 {[%emt 0:00:00]} Nf6 {[%emt 0:00:05]} 3. Nc3 {[%emt 0:00:09]} e5 {[%emt 0:00:09]} 4. Nf3 {[%emt 0:00:51]} Nbd7 {[%emt 0:00:27]} 5. Bc4 {[%emt 0:00:13]} Be7 {[%emt 0:00:10]} 6. O-O {[%emt 0:02:02]} O-O {[%emt 0:04:10]} 7. a4 {[%emt 0:00:31]} a5 {[%emt 0:00:08]} 8. h3 {[%emt 0:02:44]} b6 {[%emt 0:00:39]} 9. Re1 {[%emt 0:06:12]} Bb7 {[%emt 0:00:15]} 10. dxe5 {[%emt 0:06:39]} dxe5 {[%emt 0:01:08]} 11. Nd5 {[%emt 0:06:23]} Nxd5 {[%emt 0:01:44]} 12. Bxd5 {[%emt 0:00:23]} c6 {[%emt 0:00:21]} 13. Bc4 {[%emt 0:03:10]} Qc7 {[%emt 0:00:21]} 14. Bg5 {[%emt 0:03:41]} Bxg5 {[%emt 0:05:11]} 15. Nxg5 {[%emt 0:01:07]} Nf6 {[%emt 0:00:22]} 16. Ra3 {[%emt 0:09:14]} h6 {[%emt 0:04:12]} 17. Nf3 {[%emt 0:07:24]} b5 {[%emt 0:04:48]} 18. Ba2 {[%emt 0:05:05]} b4 {[%emt 0:07:43]} 19. Rae3 {[%emt 0:01:39]} c5 {[%emt 0:02:56]} 20. Bc4 {[%emt 0:04:25]} Rad8 {[%emt 0:00:10]} 21. Qe2 {[%emt 0:03:52]} Nh5 {[%emt 0:03:01]} 22. Nh4 {[%emt 0:05:54]} Nf4 {[%emt 0:06:00]} 23. Qg4 {[%emt 0:02:11]} Kh7 {[%emt 0:03:57]} 24. g3 {[%emt 0:11:55]} Bc8 {[%emt 0:05:00]} 25. Nf5 {[%emt 0:00:37]} g6 {[%emt 0:00:18]} 26. gxf4 {[%emt 0:02:23]} gxf5 {[%emt 0:00:46]} 27. Qh4 {[%emt 0:03:32]} Rd4 {[%emt 0:03:43]} 28. b3 {[%emt 0:05:25]} exf4 {[%emt 0:00:21]} 29. Rf3 {[%emt 0:02:38]} fxe4 {[%emt 0:05:06]} 30. Rxf4 {[%emt 0:02:43]} f5 {[%emt 0:00:19]} 31. Re3 {[%emt 0:00:34]} Qd8 {[%emt 0:03:09]} 32. Qxd8 {[%emt 0:01:27]} Rfxd8 {[%emt 0:00:17]} 33. c3 {[%emt 0:00:20]} Rd1+ {[%emt 0:03:02]} 34. Kh2 {[%emt 0:00:02]} Rc1 {[%emt 0:00:54]} 35. cxb4 {[%emt 0:00:08]} cxb4 {[%emt 0:00:11]} 36. Rh4 {[%emt 0:01:28]} Rd2 {[%emt 0:02:31]} 37. Rf4 {[%emt 0:00:47]} Kg6 {[%emt 0:02:04]} 38. Kg3 {[%emt 0:00:27]} Kg5 {[%emt 0:02:20]} 39. h4+ {[%emt 0:00:25]} Kg6 {[%emt 0:00:07]} 40. Kg2 {[%emt 0:00:43]} Kf6 {[%emt 0:02:33]} 41. Kh2 {[%emt 0:00:31]} Ke5 {[%emt 0:00:34]} 42. Kg3 {[%emt 0:00:18]} Rg1+ {[%emt 0:00:14]} 43. Kh2 {[%emt 0:00:02]} Rdd1 {[%emt 0:00:10]} 44. Rff3 {[%emt 0:00:18]} Rh1+ {[%emt 0:00:12]} 45. Kg2 {[%emt 0:00:16]} Rdg1# {[%emt 0:00:06]} 0-1

[Event "26th Abu Dhabi Master 2019"]
[Site "Abu Dhabi"]
[Date "2019.08.03"]
[Round "2.37"]
[White "Praggnanandhaa R"]
[Black "Kushagra Mohan"]
[Result "1-0"]
[ECO "C77"]
[WhiteElo "2540"]
[BlackElo "2250"]
[Annotator "ChessBase"]
[PlyCount "69"]
[EventDate "2019.08.02"]
[EventType "swiss"]
[EventCountry "UAE"]
[SourceTitle "playchess.com"]
[Source "ChessBase"]
[SourceQuality "1"]
[TimeControl "5400+30"]

1. e4 e5 2. Nf3 Nc6 3. Bb5 a6 4. Ba4 Nf6 5. d3 d6 6. c4 Be7 7. h3 O-O 8. Be3 Bd7 9. Nc3 Nb8 10. O-O c5 11. a3 h6 12. b4 b6 13. bxc5 bxc5 14. Rb1 Qc7 15. Nh4 Be6 16. Qf3 Nbd7 17. Nd5 Bxd5 18. cxd5 Rfd8 19. Nf5 Nf8 20. Rb2 Rdb8 21. Rfb1 Rxb2 22. Rxb2 Bd8 23. Bd2 Ng6 24. Rb3 Kh7 25. Bc6 Rb8 26. Ba5 Qa7 27. Bxd8 Rxb3 28. Bxf6 c4 29. Bxg7 Kg8 30. Bxh6 cxd3 31. Be3 Qc7 32. Qh5 Qd8 33. Bg5 Qf8 34. Nh6+ Kg7 35. Ng4 1-0

[Event "26th Abu Dhabi Master 2019"]
[Site "Abu Dhabi"]
[Date "2019.08.03"]
[Round "2.38"]
[White "Aryan Chopra"]
[Black "Nitish Belurkar"]
[Result "1-0"]
[ECO "C11"]
[WhiteElo "2553"]
[BlackElo "2302"]
[Annotator "ChessBase"]
[PlyCount "61"]
[EventDate "2019.08.02"]
[EventType "swiss"]
[EventCountry "UAE"]
[SourceTitle "playchess.com"]
[Source "ChessBase"]
[SourceQuality "1"]
[TimeControl "5400+30"]

1. e4 e6 2. d4 d5 3. Nc3 Nf6 4. e5 Nfd7 5. f4 c5 6. Nf3 Nc6 7. Be3 a6 8. Qd2 Qb6 9. O-O-O Qc7 10. dxc5 Bxc5 11. Bxc5 Nxc5 12. Qe3 Ne7 13. Bd3 b5 14. Kb1 Rb8 15. Ne2 b4 16. Ned4 Bd7 17. g4 g6 18. Rhf1 Qb6 19. f5 Nxd3 20. fxe6 Bxe6 21. Rxd3 Bxg4 22. Qf4 Bh3 23. Ng5 Bf5 24. e6 f6 25. Nf7 Bxd3 26. cxd3 Rf8 27. Qxf6 Nf5 28. Nxf5 gxf5 29. Qxf5 Ke7 30. Qg5+ Ke8 31. e7 1-0

[Event "26th Abu Dhabi Master 2019"]
[Site "Abu Dhabi"]
[Date "2019.08.03"]
[Round "2.39"]
[White "Arjun Kalyan"]
[Black "Al Hosani, Omran"]
[Result "1-0"]
[ECO "B52"]
[WhiteElo "2482"]
[BlackElo "2135"]
[Annotator "ChessBase"]
[PlyCount "53"]
[EventDate "2019.08.02"]
[EventType "swiss"]
[EventCountry "UAE"]
[SourceTitle "playchess.com"]
[Source "ChessBase"]
[SourceQuality "1"]
[TimeControl "5400+30"]

1. e4 {[%emt 0:00:00]} c5 {[%emt 0:00:00]} 2. Nf3 {[%emt 0:00:00]} d6 {[%emt 0:00:00]} 3. Bb5+ {[%emt 0:00:42]} Bd7 {[%emt 0:00:01]} 4. Bxd7+ {[%emt 0:00:21]} Qxd7 {[%emt 0:00:02]} 5. c4 {[%emt 0:00:08]} Nf6 {[%emt 0:00:34]} 6. Nc3 {[%emt 0:00:53]} g6 {[%emt 0:00:16]} 7. d4 {[%emt 0:03:35]} cxd4 {[%emt 0:00:11]} 8. Nxd4 {[%emt 0:00:11]} Bg7 {[%emt 0:00:14]} 9. f3 {[%emt 0:00:49]} O-O {[%emt 0:00:09]} 10. Be3 {[%emt 0:00:33]} Nc6 {[%emt 0:01:24]} 11. O-O {[%emt 0:00:48]} Rac8 {[%emt 0:02:55]} 12. b3 {[%emt 0:02:14]} a6 {[%emt 0:03:00]} 13. Qd3 {[%emt 0:06:33]} Nxd4 {[%emt 0:03:11]} 14. Bxd4 {[%emt 0:00:08]} Qc6 {[%emt 0:00:05]} 15. Rac1 {[%emt 0:09:11]} Rfd8 {[%emt 0:08:06]} 16. Be3 {[%emt 0:19:18]} e6 {[%emt 0:04:21]} 17. Rfd1 {[%emt 0:01:08]} Qe8 {[%emt 0:02:35]} 18. Bf4 {[%emt 0:10:24]} Nh5 {[%emt 0:02:45]} 19. Bxd6 {[%emt 0:07:25]} Be5 {[%emt 0:00:25]} 20. c5 {[%emt 0:02:21]} Rxc5 {[%emt 0:08:53]} 21. Bxc5 {[%emt 0:00:06]} Rxd3 {[%emt 0:00:05]} 22. Rxd3 {[%emt 0:00:04]} Nf4 {[%emt 0:01:21]} 23. Rd2 {[%emt 0:01:26]} Qc8 {[%emt 0:02:27]} 24. Be3 {[%emt 0:06:03]} Bxc3 {[%emt 0:00:47]} 25. Bxf4 {[%emt 0:00:20]} Qc5+ {[%emt 0:02:35]} 26. Kh1 {[%emt 0:00:09]} g5 {[%emt 0:00:44]} 27. Rd8+ {[%emt 0:00:30]} 1-0

[Event "26th Abu Dhabi Master 2019"]
[Site "Abu Dhabi"]
[Date "2019.08.03"]
[Round "2.40"]
[White "Salonika, Saina"]
[Black "Shyaamnikhil P"]
[Result "1/2-1/2"]
[ECO "B90"]
[WhiteElo "2127"]
[BlackElo "2456"]
[Annotator "ChessBase"]
[PlyCount "65"]
[EventDate "2019.08.02"]
[EventType "swiss"]
[EventCountry "UAE"]
[SourceTitle "playchess.com"]
[Source "ChessBase"]
[SourceQuality "1"]
[TimeControl "5400+30"]

1. e4 {[%emt 0:00:00]} c5 {[%emt 0:00:00]} 2. Nf3 {[%emt 0:00:00]} d6 {[%emt 0:01:25]} 3. d4 {[%emt 0:00:00]} cxd4 {[%emt 0:00:05]} 4. Nxd4 {[%emt 0:00:00]} Nf6 {[%emt 0:00:04]} 5. Nc3 {[%emt 0:00:00]} a6 {[%emt 0:00:23]} 6. Be3 {[%emt 0:03:57]} e5 {[%emt 0:00:35]} 7. Nf3 {[%emt 0:00:09]} Be7 {[%emt 0:02:04]} 8. Bc4 {[%emt 0:00:48]} O-O {[%emt 0:03:35]} 9. O-O {[%emt 0:00:24]} Nc6 {[%emt 0:01:52]} 10. Bb3 {[%emt 0:09:08]} Be6 {[%emt 0:07:04]} 11. Qe2 {[%emt 0:05:19]} Na5 {[%emt 0:03:29]} 12. Rfd1 {[%emt 0:00:46]} Nxb3 {[%emt 0:00:53]} 13. axb3 {[%emt 0:00:09]} Qc7 {[%emt 0:00:48]} 14. Bg5 {[%emt 0:02:39]} Ne8 {[%emt 0:02:57]} 15. Bxe7 {[%emt 0:10:14]} Qxe7 {[%emt 0:00:05]} 16. Nd5 {[%emt 0:00:10]} Bxd5 {[%emt 0:01:17]} 17. Rxd5 {[%emt 0:00:17]} Nc7 {[%emt 0:00:41]} 18. Rd2 {[%emt 0:05:23]} a5 {[%emt 0:00:57]} 19. c4 {[%emt 0:10:07]} Ne6 {[%emt 0:05:24]} 20. Qe3 {[%emt 0:02:51]} Ra6 {[%emt 0:02:36]} 21. Rd5 {[%emt 0:02:55]} Rfa8 {[%emt 0:00:17]} 22. g3 {[%emt 0:00:41]} Nc7 {[%emt 0:02:29]} 23. Rdd1 {[%emt 0:04:42]} b5 {[%emt 0:01:03]} 24. cxb5 {[%emt 0:03:50]} Nxb5 {[%emt 0:00:07]} 25. Qd3 {[%emt 0:00:09]} Nc7 {[%emt 0:00:41]} 26. Nd2 {[%emt 0:03:04]} Ne6 {[%emt 0:02:31]} 27. b4 {[%emt 0:01:28]} Nd4 {[%emt 0:06:22]} 28. bxa5 {[%emt 0:02:29]} Rxa5 {[%emt 0:00:15]} 29. Rxa5 {[%emt 0:00:26]} Rxa5 {[%emt 0:00:08]} 30. Nb3 {[%emt 0:00:48]} Ra4 {[%emt 0:04:36]} 31. Nxd4 {[%emt 0:01:08]} Rxd4 {[%emt 0:00:07]} 32. Qc2 {[%emt 0:00:41]} Rb4 {[%emt 0:01:10]} 33. Qc8+ {[%emt 0:00:44]} 1/2-1/2

[Event "26th Abu Dhabi Master 2019"]
[Site "Abu Dhabi"]
[Date "2019.08.03"]
[Round "2.41"]
[White "Alavi, Sayed Javad"]
[Black "Asaka, Samuel"]
[Result "1-0"]
[ECO "D38"]
[WhiteElo "2454"]
[BlackElo "2201"]
[Annotator "ChessBase"]
[PlyCount "92"]
[EventDate "2019.08.02"]
[EventType "swiss"]
[EventCountry "UAE"]
[SourceTitle "playchess.com"]
[Source "ChessBase"]
[SourceQuality "1"]
[TimeControl "5400+30"]

1. d4 {[%emt 0:02:53]} Nf6 {[%emt 0:00:00]} 2. c4 {[%emt 0:01:25]} e6 {[%emt 0:00:00]} 3. Nf3 {[%emt 0:00:05]} d5 {[%emt 0:00:00]} 4. Nc3 {[%emt 0:00:04]} Bb4 {[%emt 0:00:24]} 5. Bg5 {[%emt 0:03:53]} h6 {[%emt 0:00:11]} 6. Bxf6 {[%emt 0:00:31]} Qxf6 {[%emt 0:00:08]} 7. Qa4+ {[%emt 0:00:02]} Nc6 {[%emt 0:00:09]} 8. e3 {[%emt 0:00:10]} O-O {[%emt 0:00:59]} 9. Be2 {[%emt 0:00:14]} dxc4 {[%emt 0:01:18]} 10. O-O {[%emt 0:08:57]} Bd7 {[%emt 0:09:09]} 11. Ne5 {[%emt 0:26:52]} Be8 {[%emt 0:35:02]} 12. Nxc6 {[%emt 0:04:29]} Bxc3 {[%emt 0:00:10]} 13. bxc3 {[%emt 0:00:40]} Bxc6 {[%emt 0:00:14]} 14. Qxc4 {[%emt 0:00:42]} Qg5 {[%emt 0:02:25]} 15. g3 {[%emt 0:00:10]} h5 {[%emt 0:04:29]} 16. Qd3 {[%emt 0:05:05]} e5 {[%emt 0:28:39]} 17. h4 {[%emt 0:08:54]} Qd8 {[%emt 0:00:03]} 18. Bxh5 {[%emt 0:00:58]} g6 {[%emt 0:11:18]} 19. Be2 {[%emt 0:05:08]} Qd5 {[%emt 0:00:44]} 20. f3 {[%emt 0:02:42]} Qe6 {[%emt 0:01:13]} 21. Kg2 {[%emt 0:06:18]} Rfe8 {[%emt 0:02:11]} 22. e4 {[%emt 0:04:04]} exd4 {[%emt 0:00:05]} 23. cxd4 {[%emt 0:00:01]} f5 {[%emt 0:00:56]} 24. e5 {[%emt 0:00:07]} f4 {[%emt 0:00:36]} 25. Kf2 {[%emt 0:07:37]} fxg3+ 26. Kxg3 {[%emt 0:00:02]} Rf8 {[%emt 0:01:56]} 27. f4 {[%emt 0:01:24]} Rad8 {[%emt 0:00:18]} 28. Bg4 {[%emt 0:07:18]} Qe8 {[%emt 0:00:09]} 29. e6 {[%emt 0:00:45]} Kg7 {[%emt 0:00:46]} 30. Rfe1 {[%emt 0:01:39]} Qe7 {[%emt 0:00:30]} 31. Re5 {[%emt 0:00:06]} Qf6 {[%emt 0:00:54]} 32. Rf1 {[%emt 0:00:49]} Rfe8 {[%emt 0:00:31]} 33. h5 {[%emt 0:00:28]} Rd5 {[%emt 0:00:30]} 34. Rxd5 {[%emt 0:00:49]} Bxd5 {[%emt 0:00:02]} 35. Qxg6+ {[%emt 0:00:12]} Qxg6 {[%emt 0:00:06]} 36. hxg6 {[%emt 0:00:01]} Bxe6 {[%emt 0:01:09]} 37. Bxe6 {[%emt 0:01:49]} Rxe6 {[%emt 0:00:05]} 38. f5 {[%emt 0:00:02]} Rd6 {[%emt 0:01:02]} 39. Kf4 {[%emt 0:01:25]} Kf6 {[%emt 0:00:25]} 40. Ke4 {[%emt 0:00:05]} Rd8 {[%emt 0:00:37]} 41. Rh1 {[%emt 0:00:26]} Re8+ {[%emt 0:00:29]} 42. Kf4 {[%emt 0:00:01]} Rd8 {[%emt 0:00:23]} 43. Rh7 {[%emt 0:00:14]} Rxd4+ {[%emt 0:00:22]} 44. Ke3 {[%emt 0:00:01]} Rd8 {[%emt 0:00:48]} 45. Rf7+ {[%emt 0:00:06]} Ke5 {[%emt 0:00:25]} 46. g7 {[%emt 0:00:06]} Rg8 {[%emt 0:00:30]} 1-0

[Event "26th Abu Dhabi Master 2019"]
[Site "Abu Dhabi"]
[Date "2019.08.03"]
[Round "2.42"]
[White "Laxman, R.R."]
[Black "Tashkhodzhaev, Akram"]
[Result "1-0"]
[ECO "A46"]
[WhiteElo "2429"]
[BlackElo "2123"]
[Annotator "NA"]
[PlyCount "95"]
[EventDate "2019.08.02"]
[EventType "swiss"]
[EventCountry "UAE"]
[SourceTitle "playchess.com"]
[Source "ChessBase"]
[SourceQuality "1"]
[TimeControl "5400+30"]

1. d4 Nf6 {[%emt 0:02:13]} 2. Nf3 {[%emt 0:00:00]} c5 {[%emt 0:01:01]} 3. e3 {[%emt 0:01:34]} e6 {[%emt 0:01:42]} 4. c4 {[%emt 0:01:00]} d5 {[%emt 0:05:33]} 5. Nc3 {[%emt 0:00:37]} Nc6 {[%emt 0:00:39]} 6. a3 {[%emt 0:00:09]} dxc4 {[%emt 0:04:00]} 7. Bxc4 {[%emt 0:00:06]} Be7 {[%emt 0:01:36]} 8. O-O {[%emt 0:00:24]} O-O {[%emt 0:01:37]} 9. dxc5 {[%emt 0:01:01]} Qxd1 {[%emt 0:08:08]} 10. Rxd1 {[%emt 0:00:08]} Bxc5 {[%emt 0:00:02]} 11. Ng5 {[%emt 0:02:04]} Be7 {[%emt 0:06:00]} 12. Nge4 {[%emt 0:11:58]} Nxe4 {[%emt 0:06:12]} 13. Nxe4 {[%emt 0:00:27]} Ne5 {[%emt 0:07:00]} 14. Bb3 {[%emt 0:12:20]} Bd7 {[%emt 0:05:27]} 15. Bd2 {[%emt 0:00:38]} Bc6 {[%emt 0:00:12]} 16. Ng3 {[%emt 0:00:06]} Rfd8 {[%emt 0:01:54]} 17. Bc3 {[%emt 0:00:05]} Ng4 {[%emt 0:04:37]} 18. Nh5 {[%emt 0:02:03]} Nf6 {[%emt 0:00:48]} 19. Nxf6+ {[%emt 0:01:22]} Bxf6 {[%emt 0:00:11]} 20. Bxf6 {[%emt 0:00:04]} gxf6 {[%emt 0:00:05]} 21. f3 {[%emt 0:00:10]} Kf8 {[%emt 0:00:13]} 22. Kf2 {[%emt 0:00:06]} Ke7 {[%emt 0:00:07]} 23. g4 {[%emt 0:00:47]} Rxd1 {[%emt 0:05:54]} 24. Rxd1 {[%emt 0:00:05]} Rg8 {[%emt 0:00:06]} 25. h3 {[%emt 0:00:18]} Rg5 {[%emt 0:00:16]} 26. Rd2 {[%emt 0:06:29]} h6 {[%emt 0:02:10]} 27. Bd1 {[%emt 0:01:11]} Rc5 {[%emt 0:00:22]} 28. Rc2 {[%emt 0:01:15]} Rd5 {[%emt 0:20:31]} 29. Be2 {[%emt 0:00:16]} f5 {[%emt 0:00:28]} 30. f4 {[%emt 0:00:44]} Kd6 {[%emt 0:01:43]} 31. Kg3 {[%emt 0:05:35]} fxg4 {[%emt 0:01:54]} 32. hxg4 {[%emt 0:00:02]} f5 {[%emt 0:00:15]} 33. gxf5 {[%emt 0:02:16]} Rxf5 {[%emt 0:00:51]} 34. Bg4 {[%emt 0:00:17]} Rf6 {[%emt 0:00:31]} 35. Rd2+ {[%emt 0:01:26]} Ke7 {[%emt 0:02:53]} 36. Rd4 {[%emt 0:00:14]} Rf8 {[%emt 0:00:56]} 37. e4 {[%emt 0:00:35]} Rc8 {[%emt 0:01:59]} 38. Kh4 {[%emt 0:01:43]} Be8 {[%emt 0:00:10]} 39. Bh5 {[%emt 0:03:04]} Rc2 {[%emt 0:01:42]} 40. Bxe8 {[%emt 0:00:05]} Kxe8 {[%emt 0:00:05]} 41. Rb4 {[%emt 0:00:08]} b6 {[%emt 0:00:09]} 42. Kh5 {[%emt 0:00:08]} Rh2+ {[%emt 0:05:21]} 43. Kg6 {[%emt 0:00:05]} h5 {[%emt 0:00:16]} 44. Kf6 {[%emt 0:00:09]} Rf2 {[%emt 0:00:38]} 45. e5 {[%emt 0:00:16]} h4 {[%emt 0:00:11]} 46. Kxe6 {[%emt 0:00:10]} h3 {[%emt 0:00:07]} 47. f5 {[%emt 0:00:13]} h2 {[%emt 0:02:15]} 48. Rh4 {[%emt 0:00:04]} 1-0